[Event "44th Chess Olympiad Open 2022"]
[Site "Chennai"]
[Date "2022.08.01"]
[Round "4.80"]
[White "Nxumalo, Vuyo"]
[Black "Al Ibrahim, Abdulrahman"]
[Result "0-1"]
[WhiteElo "1493"]
[BlackElo "1822"]
[Annotator "NA RC"]
[PlyCount "54"]
[EventDate "2022.??.??"]
[TimeControl "60"]

1. e4 {[%emt 0:00:43]} e6 {[%emt 0:00:06]} 2. g3 {[%emt 0:01:04]} d5 {[%emt 0:
00:00]} 3. Bg2 {[%emt 0:01:08]} dxe4 {[%emt 0:00:58]} 4. Bxe4 {[%emt 0:00:10]}
Nf6 {[%emt 0:00:16]} 5. Bg2 {[%emt 0:00:07]} Bc5 {[%emt 0:02:11]} 6. Ne2 {
[%emt 0:01:06]} e5 {[%emt 0:01:36]} 7. Nbc3 {[%emt 0:00:56]} Nc6 {[%emt 0:00:
00]} 8. d3 {[%emt 0:00:16]} O-O {[%emt 0:02:49]} 9. O-O {[%emt 0:00:35]} Bg4 {
[%emt 0:13:20]} 10. Kh1 {[%emt 0:06:29]} Qd7 {[%emt 0:01:33]} 11. Bg5 {[%emt 0:
00:00]} Nh5 {[%emt 0:07:31]} 12. Be3 {[%emt 0:05:31]} Bd6 {[%emt 0:09:24]} 13.
Ne4 {[%emt 0:04:46]} Ne7 {[%emt 0:06:30]} 14. Nxd6 {[%emt 0:00:56]} cxd6 {
[%emt 0:00:04]} 15. f3 {[%emt 0:00:24]} Bh3 {[%emt 0:01:34]} 16. g4 {[%emt 0:
00:00]} Bxg2+ {[%emt 0:00:20]} 17. Kxg2 {[%emt 0:00:09]} Nf6 {[%emt 0:04:22]}
18. Ng3 {[%emt 0:09:20]} Nfd5 {[%emt 0:02:55]} 19. Bd2 {[%emt 0:01:30]} f5 {
[%emt 0:01:18]} 20. g5 {[%emt 0:01:27]} Ng6 {[%emt 0:00:24]} 21. Ne2 {[%emt 0:
00:00]} f4 {[%emt 0:02:32]} 22. c4 {[%emt 0:01:18]} Nh4+ {[%emt 0:09:43]} 23.
Kf2 {[%emt 0:13:11]} Qh3 {[%emt 0:02:51]} 24. Qb3 {[%emt 0:08:13]} Qxf3+ {
[%emt 0:00:59]} 25. Ke1 {[%emt 0:03:00]} Ng2+ {[%emt 0:03:27]} 26. Kd1 {
[%emt 0:00:09]} Qxf1+ {[%emt 0:00:06]} 27. Kc2 {[%emt 0:00:40]} Nge3+ {[%emt 0:
00:00]} 0-1

[Event "44th Chess Olympiad Open 2022"]
[Site "Chennai"]
[Date "2022.08.01"]
[Round "4.81"]
[White "Koumba, Mounguen Jose Evrar"]
[Black "Chinasamy, Devarajen"]
[Result "1-0"]
[WhiteElo "1942"]
[BlackElo "1970"]
[Annotator "NA RC"]
[PlyCount "63"]
[EventDate "2022.??.??"]
[TimeControl "60"]

1. e4 {[%emt 0:00:06]} c6 {[%emt 0:00:06]} 2. d4 {[%emt 0:00:11]} d5 {[%emt 0:
00:00]} 3. e5 {[%emt 0:00:12]} c5 {[%emt 0:00:13]} 4. Nf3 {[%emt 0:01:45]} Nc6
{[%emt 0:00:19]} 5. Bb5 {[%emt 0:01:06]} Qb6 {[%emt 0:03:51]} 6. Nc3 {[%emt 0:
00:00]} e6 {[%emt 0:00:18]} 7. Be3 {[%emt 0:00:47]} a6 {[%emt 0:03:37]} 8.
Bxc6+ {[%emt 0:04:56]} Qxc6 {[%emt 0:00:33]} 9. O-O {[%emt 0:01:40]} Ne7 {
[%emt 0:09:10]} 10. dxc5 {[%emt 0:00:59]} Nf5 {[%emt 0:00:37]} 11. Nd4 {
[%emt 0:00:11]} Nxe3 {[%emt 0:06:09]} 12. fxe3 {[%emt 0:02:46]} Qxc5 {[%emt 0:
00:00]} 13. Qf3 {[%emt 0:00:28]} Qc7 {[%emt 0:00:07]} 14. Rf2 {[%emt 0:16:34]}
Bc5 {[%emt 0:02:08]} 15. Raf1 {[%emt 0:00:14]} O-O {[%emt 0:00:13]} 16. Qh5 {
[%emt 0:03:28]} g6 {[%emt 0:05:02]} 17. Qg5 {[%emt 0:00:45]} Be7 {[%emt 0:00:
00]} 18. Qf4 {[%emt 0:02:52]} b5 {[%emt 0:04:46]} 19. Rf3 {[%emt 0:03:29]} Ra7
{[%emt 0:09:05]} 20. Rh3 {[%emt 0:03:14]} f6 {[%emt 0:01:55]} 21. Qh4 {[%emt 0:
00:00]} Bd8 {[%emt 0:04:40]} 22. exf6 {[%emt 0:00:38]} b4 {[%emt 0:00:22]} 23.
Ncb5 {[%emt 0:09:01]} axb5 {[%emt 0:16:01]} 24. Nxb5 {[%emt 0:00:10]} Qf7 {
[%emt 0:00:16]} 25. Nxa7 {[%emt 0:00:38]} Ba6 {[%emt 0:03:29]} 26. Rf2 {
[%emt 0:00:52]} e5 {[%emt 0:15:55]} 27. Nc6 {[%emt 0:07:47]} Bc7 {[%emt 0:00:
00]} 28. Ne7+ {[%emt 0:01:17]} Kh8 {[%emt 0:00:16]} 29. Qxh7+ {[%emt 0:01:09]}
Qxh7 {[%emt 0:00:26]} 30. Nxg6+ {[%emt 0:00:06]} Kg8 {[%emt 0:00:15]} 31. Rxh7
{[%emt 0:00:06]} Rc8 {[%emt 0:04:13]} 32. Rg7# {[%emt 0:05:39]} 1-0

[Event "44th Chess Olympiad Open 2022"]
[Site "Chennai"]
[Date "2022.08.01"]
[Round "4.81"]
[White "Goorsahye, Antoine"]
[Black "Bongo Akanga Ndjila, Barthelemy"]
[Result "0-1"]
[WhiteElo "1783"]
[BlackElo "1803"]
[Annotator "NA RC"]
[PlyCount "116"]
[EventDate "2022.??.??"]
[TimeControl "60"]

1. e4 {[%emt 0:00:05]} d6 {[%emt 0:00:24]} 2. d4 {[%emt 0:00:15]} g6 {[%emt 0:
00:00]} 3. Nf3 {[%emt 0:00:48]} Bg7 {[%emt 0:00:25]} 4. Bd3 {[%emt 0:00:17]}
Nf6 {[%emt 0:00:08]} 5. h3 {[%emt 0:00:20]} c6 {[%emt 0:00:30]} 6. O-O {
[%emt 0:00:14]} O-O {[%emt 0:00:08]} 7. c3 {[%emt 0:00:54]} b5 {[%emt 0:00:14]}
8. Be3 {[%emt 0:00:21]} Nbd7 {[%emt 0:02:09]} 9. Na3 {[%emt 0:00:52]} a6 {
[%emt 0:02:09]} 10. Nc2 {[%emt 0:00:19]} Qc7 {[%emt 0:00:40]} 11. Qd2 {[%emt 0:
00:00]} Re8 {[%emt 0:00:16]} 12. Rfe1 {[%emt 0:03:46]} c5 {[%emt 0:00:12]} 13.
Bh6 {[%emt 0:00:59]} Bh8 {[%emt 0:00:34]} 14. e5 {[%emt 0:01:25]} c4 {[%emt 0:
00:00]} 15. exf6 {[%emt 0:03:45]} cxd3 {[%emt 0:00:23]} 16. Rxe7 {[%emt 0:00:
00]} Rxe7 {[%emt 0:00:26]} 17. fxe7 {[%emt 0:00:12]} Nf6 {[%emt 0:00:22]} 18.
Re1 {[%emt 0:04:30]} Be6 {[%emt 0:00:19]} 19. Qxd3 {[%emt 0:00:31]} Re8 {
[%emt 0:01:25]} 20. Bg5 {[%emt 0:02:38]} Bf5 {[%emt 0:01:29]} 21. Qe2 {[%emt 0:
00:00]} Bxc2 {[%emt 0:01:08]} 22. Qxc2 {[%emt 0:00:08]} Rxe7 {[%emt 0:00:06]}
23. Rxe7 {[%emt 0:02:58]} Qxe7 {[%emt 0:00:08]} 24. Qd2 {[%emt 0:03:20]} Qe6 {
[%emt 0:01:01]} 25. Bxf6 {[%emt 0:04:18]} Bxf6 {[%emt 0:00:12]} 26. d5 {
[%emt 0:01:21]} Qe4 {[%emt 0:00:16]} 27. Qe3 {[%emt 0:02:03]} Qb1+ {[%emt 0:00:
00]} 28. Kh2 {[%emt 0:00:11]} Qxa2 {[%emt 0:01:10]} 29. Qf4 {[%emt 0:03:03]}
Be7 {[%emt 0:02:24]} 30. Qe4 {[%emt 0:00:41]} Bf6 {[%emt 0:01:10]} 31. Qf4 {
[%emt 0:02:46]} Be7 {[%emt 0:00:07]} 32. Qe4 {[%emt 0:01:47]} Bf8 {[%emt 0:00:
00]} 33. b4 {[%emt 0:08:32]} Qxf2 {[%emt 0:02:32]} 34. Nd4 {[%emt 0:03:57]} Bh6
{[%emt 0:00:17]} 35. Nf3 {[%emt 0:01:47]} Bd2 {[%emt 0:13:41]} 36. Nxd2 {
[%emt 0:03:21]} Qxd2 {[%emt 0:00:10]} 37. Qe8+ {[%emt 0:01:04]} Kg7 {[%emt 0:
00:00]} 38. Qc6 {[%emt 0:00:26]} Qf4+ {[%emt 0:04:40]} 39. Kg1 {[%emt 0:00:07]}
Qc1+ {[%emt 0:00:54]} 40. Kh2 {[%emt 0:00:06]} Qf4+ {[%emt 0:00:03]} 41. Kg1 {
[%emt 0:30:08]} Qe5 {[%emt 0:34:25]} 42. Kf2 {[%emt 0:04:43]} h5 {[%emt 0:00:
00]} 43. Kf1 {[%emt 0:03:01]} g5 {[%emt 0:00:27]} 44. Kf2 {[%emt 0:01:11]} g4 {
[%emt 0:00:14]} 45. hxg4 {[%emt 0:00:09]} hxg4 {[%emt 0:00:03]} 46. g3 {
[%emt 0:00:53]} Qf5+ {[%emt 0:00:16]} 47. Kg2 {[%emt 0:00:30]} Qf3+ {[%emt 0:
00:00]} 48. Kh2 {[%emt 0:01:14]} Qf2+ {[%emt 0:00:29]} 49. Kh1 {[%emt 0:00:10]}
Qxg3 {[%emt 0:00:07]} 50. Qc8 {[%emt 0:02:00]} Qf3+ {[%emt 0:01:50]} 51. Kg1 {
[%emt 0:00:05]} g3 {[%emt 0:01:20]} 52. Qh3 {[%emt 0:00:18]} Qf2+ {[%emt 0:00:
00]} 53. Kh1 {[%emt 0:00:06]} Qh2+ {[%emt 0:00:24]} 54. Qxh2 {[%emt 0:00:08]}
gxh2 {[%emt 0:00:04]} 55. Kxh2 {[%emt 0:00:16]} Kf6 {[%emt 0:00:00]} 56. Kg3 {
[%emt 0:00:33]} Ke5 {[%emt 0:00:06]} 57. Kg4 {[%emt 0:00:12]} Kxd5 {[%emt 0:00:
00]} 58. Kf5 {[%emt 0:00:12]} Kc4 {[%emt 0:00:12]} 0-1

[Event "44th Chess Olympiad Open 2022"]
[Site "Chennai"]
[Date "2022.08.01"]
[Round "4.82"]
[White "Strovsky, Mikhail"]
[Black "Morgan, Jamie"]
[Result "0-1"]
[WhiteElo "2158"]
[BlackElo "1753"]
[Annotator "NA RC"]
[PlyCount "44"]
[EventDate "2022.??.??"]
[TimeControl "60"]

1. e4 {[%emt 0:00:24]} c5 {[%emt 0:00:09]} 2. Nf3 {[%emt 0:00:05]} g6 {[%emt 0:
00:00]} 3. c3 {[%emt 0:00:15]} d5 {[%emt 0:00:16]} 4. exd5 {[%emt 0:00:45]}
Qxd5 {[%emt 0:00:13]} 5. d4 {[%emt 0:01:02]} Bg7 {[%emt 0:00:27]} 6. Be3 {
[%emt 0:06:14]} cxd4 {[%emt 0:04:18]} 7. Nxd4 {[%emt 0:03:02]} Nf6 {[%emt 0:00:
00]} 8. Qa4+ {[%emt 0:09:34]} Bd7 {[%emt 0:03:29]} 9. Qc4 {[%emt 0:00:17]} O-O
{[%emt 0:02:54]} 10. Nd2 {[%emt 0:04:58]} a6 {[%emt 0:11:23]} 11. N2f3 {
[%emt 0:03:18]} Nc6 {[%emt 0:04:14]} 12. Rd1 {[%emt 0:05:47]} b5 {[%emt 0:00:
00]} 13. Qxd5 {[%emt 0:17:26]} Nxd5 {[%emt 0:00:54]} 14. Nxc6 {[%emt 0:06:52]}
Bxc6 {[%emt 0:00:13]} 15. Bg5 {[%emt 0:02:03]} h6 {[%emt 0:12:42]} 16. Bh4 {
[%emt 0:00:50]} e5 {[%emt 0:08:42]} 17. c4 {[%emt 0:08:19]} Nf4 {[%emt 0:01:33]
} 18. Bg3 {[%emt 0:01:16]} Rfe8 {[%emt 0:05:36]} 19. Rd6 {[%emt 0:05:49]} Rac8
{[%emt 0:02:43]} 20. b3 {[%emt 0:09:40]} Bf8 {[%emt 0:02:20]} 21. Rd1 {[%emt 0:
00:00]} Bxf3 {[%emt 0:01:39]} 22. gxf3 {[%emt 0:00:32]} Bb4+ {[%emt 0:00:35]}
0-1

[Event "44th Chess Olympiad Open 2022"]
[Site "Chennai"]
[Date "2022.08.01"]
[Round "4.82"]
[White "Brookfield, Toby"]
[Black "Egbe, Kossi Thierry"]
[Result "1-0"]
[WhiteElo "1815"]
[BlackElo "1703"]
[Annotator "NA RC"]
[PlyCount "119"]
[EventDate "2022.??.??"]
[TimeControl "60"]

1. e4 {[%emt 0:00:07]} e5 {[%emt 0:00:07]} 2. d4 {[%emt 0:00:20]} exd4 {
[%emt 0:01:02]} 3. Qxd4 {[%emt 0:00:08]} Nc6 {[%emt 0:00:14]} 4. Qe3 {[%emt 0:
00:00]} Nf6 {[%emt 0:00:16]} 5. Nc3 {[%emt 0:00:12]} Bb4 {[%emt 0:00:07]} 6.
Bd2 {[%emt 0:00:08]} O-O {[%emt 0:00:22]} 7. O-O-O {[%emt 0:00:07]} Re8 {
[%emt 0:00:04]} 8. Qg3 {[%emt 0:00:09]} Nxe4 {[%emt 0:03:59]} 9. Nxe4 {[%emt 0:
00:00]} Rxe4 {[%emt 0:00:23]} 10. Bxb4 {[%emt 0:01:30]} Rxb4 {[%emt 0:03:01]}
11. a3 {[%emt 0:01:13]} Rb6 {[%emt 0:00:24]} 12. Ne2 {[%emt 0:14:19]} d5 {
[%emt 0:08:56]} 13. Nc3 {[%emt 0:02:04]} Ne7 {[%emt 0:02:27]} 14. Bd3 {[%emt 0:
00:00]} c5 {[%emt 0:02:45]} 15. Rhe1 {[%emt 0:06:26]} Be6 {[%emt 0:02:38]} 16.
f4 {[%emt 0:06:39]} Rc8 {[%emt 0:11:49]} 17. f5 {[%emt 0:11:48]} Bxf5 {[%emt 0:
00:00]} 18. Bxf5 {[%emt 0:07:10]} Nxf5 {[%emt 0:00:55]} 19. Qh3 {[%emt 0:00:51]
} Nd4 {[%emt 0:07:41]} 20. Nxd5 {[%emt 0:04:07]} Re6 {[%emt 0:02:35]} 21. Rxe6
{[%emt 0:08:22]} fxe6 {[%emt 0:03:30]} 22. Nf4 {[%emt 0:01:20]} e5 {[%emt 0:00:
00]} 23. Nd5 {[%emt 0:04:48]} Rc6 {[%emt 0:02:40]} 24. Nc3 {[%emt 0:04:59]} b5
{[%emt 0:00:12]} 25. Qd3 {[%emt 0:03:49]} b4 {[%emt 0:06:40]} 26. Qc4+ {
[%emt 0:01:48]} Kh8 {[%emt 0:00:07]} 27. Ne4 {[%emt 0:04:52]} Qg8 {[%emt 0:00:
00]} 28. Qxg8+ {[%emt 0:01:45]} Kxg8 {[%emt 0:00:21]} 29. axb4 {[%emt 0:00:18]}
cxb4 {[%emt 0:02:03]} 30. c3 {[%emt 0:00:30]} bxc3 {[%emt 0:00:16]} 31. bxc3 {
[%emt 0:01:00]} Nb5 {[%emt 0:03:19]} 32. Kc2 {[%emt 0:02:17]} Rc4 {[%emt 0:00:
00]} 33. Kd3 {[%emt 0:00:49]} Rc7 {[%emt 0:00:48]} 34. Rf1 {[%emt 0:01:31]} h6
{[%emt 0:00:54]} 35. Rf5 {[%emt 0:00:44]} Re7 {[%emt 0:00:41]} 36. Kc4 {
[%emt 0:00:25]} a6 {[%emt 0:00:48]} 37. Kd5 {[%emt 0:00:28]} Rd7+ {[%emt 0:00:
00]} 38. Kxe5 {[%emt 0:00:41]} Re7+ {[%emt 0:00:10]} 39. Kd5 {[%emt 0:00:41]}
Rxe4 {[%emt 0:00:10]} 40. Kxe4 {[%emt 0:01:28]} Nd6+ {[%emt 0:00:06]} 41. Ke5 {
[%emt 0:30:32]} Nxf5 {[%emt 0:30:14]} 42. Kxf5 {[%emt 0:00:44]} Kf7 {[%emt 0:
00:00]} 43. Ke5 {[%emt 0:00:00]} Ke7 {[%emt 0:00:00]} 44. Kd5 {[%emt 0:00:00]}
Kd7 {[%emt 0:00:00]} 45. Kc5 {[%emt 0:00:00]} Kc7 {[%emt 0:00:00]} 46. g4 {
[%emt 0:00:00]} g5 {[%emt 0:00:00]} 47. c4 {[%emt 0:00:00]} Kb7 {[%emt 0:00:00]
} 48. Kd6 {[%emt 0:00:00]} a5 {[%emt 0:00:00]} 49. Kc5 {[%emt 0:00:00]} Kc7 {
[%emt 0:00:00]} 50. Kb5 {[%emt 0:00:00]} Kd6 {[%emt 0:00:00]} 51. c5+ {[%emt 0:
00:00]} Kd7 {[%emt 0:06:04]} 52. Kxa5 {[%emt 0:00:00]} Kc7 {[%emt 0:00:11]} 53.
Kb5 {[%emt 0:00:00]} Kb7 {[%emt 0:00:20]} 54. c6+ {[%emt 0:00:00]} Kc8 {
[%emt 0:00:10]} 55. Kb6 {[%emt 0:00:00]} Kb8 {[%emt 0:00:11]} 56. c7+ {[%emt 0:
00:00]} Kc8 {[%emt 0:00:11]} 57. Kc6 {[%emt 0:00:00]} h5 {[%emt 0:00:36]} 58.
gxh5 {[%emt 0:00:00]} g4 {[%emt 0:00:07]} 59. h6 {[%emt 0:00:00]} g3 {[%emt 0:
00:00]} 60. h7 {[%emt 0:00:00]} 1-0

[Event "44th Chess Olympiad Open 2022"]
[Site "Chennai"]
[Date "2022.08.01"]
[Round "4.82"]
[White "Ballebako, Kokou Difendramakad"]
[Black "Nevska, Gerda"]
[Result "0-1"]
[WhiteElo "1524"]
[BlackElo "1840"]
[Annotator "NA RC"]
[PlyCount "162"]
[EventDate "2022.??.??"]
[TimeControl "60"]

1. d4 {[%emt 0:00:12]} g6 {[%emt 0:00:07]} 2. Bf4 {[%emt 0:01:23]} Bg7 {
[%emt 0:00:17]} 3. e3 {[%emt 0:00:50]} d6 {[%emt 0:02:29]} 4. Nf3 {[%emt 0:00:
00]} Nf6 {[%emt 0:01:30]} 5. Bc4 {[%emt 0:01:37]} O-O {[%emt 0:05:15]} 6. Nbd2
{[%emt 0:02:31]} Nh5 {[%emt 0:01:28]} 7. Bg5 {[%emt 0:04:09]} h6 {[%emt 0:00:
00]} 8. Bh4 {[%emt 0:02:42]} Nd7 {[%emt 0:07:21]} 9. g4 {[%emt 0:05:44]} Nhf6 {
[%emt 0:02:26]} 10. g5 {[%emt 0:00:30]} Nh7 {[%emt 0:01:22]} 11. gxh6 {[%emt 0:
00:00]} Bxh6 {[%emt 0:00:52]} 12. Rg1 {[%emt 0:00:28]} Kh8 {[%emt 0:01:21]} 13.
Qe2 {[%emt 0:03:24]} c5 {[%emt 0:01:58]} 14. Ng5 {[%emt 0:02:14]} Nxg5 {
[%emt 0:02:00]} 15. Bxg5 {[%emt 0:01:08]} Bxg5 {[%emt 0:00:26]} 16. Rxg5 {
[%emt 0:06:22]} d5 {[%emt 0:10:50]} 17. Rxd5 {[%emt 0:06:12]} e6 {[%emt 0:00:
00]} 18. Rh5+ {[%emt 0:00:21]} Kg7 {[%emt 0:00:16]} 19. O-O-O {[%emt 0:00:14]}
cxd4 {[%emt 0:01:11]} 20. Rh3 {[%emt 0:01:42]} Nf6 {[%emt 0:03:51]} 21. Rg1 {
[%emt 0:06:07]} e5 {[%emt 0:02:54]} 22. Rhg3 {[%emt 0:00:27]} Rh8 {[%emt 0:00:
00]} 23. Nf3 {[%emt 0:05:52]} e4 {[%emt 0:11:32]} 24. Ne5 {[%emt 0:04:43]} d3 {
[%emt 0:01:31]} 25. cxd3 {[%emt 0:00:24]} exd3 {[%emt 0:00:22]} 26. Nxf7 {
[%emt 0:06:07]} Bf5 {[%emt 0:07:33]} 27. Nxd8 {[%emt 0:03:35]} dxe2 {[%emt 0:
00:00]} 28. Ne6+ {[%emt 0:01:27]} Kh7 {[%emt 0:03:53]} 29. Ng5+ {[%emt 0:05:32]
} Kg7 {[%emt 0:00:21]} 30. Kd2 {[%emt 0:00:10]} Rac8 {[%emt 0:00:39]} 31. Bb3 {
[%emt 0:00:10]} Rxh2 {[%emt 0:08:50]} 32. Kxe2 {[%emt 0:02:58]} b5 {[%emt 0:00:
00]} 33. Nf3 {[%emt 0:01:24]} Rh3 {[%emt 0:06:03]} 34. Nd4 {[%emt 0:01:22]}
Rxg3 {[%emt 0:02:23]} 35. Rxg3 {[%emt 0:05:42]} Bd7 {[%emt 0:02:07]} 36. Bc2 {
[%emt 0:00:50]} Be8 {[%emt 0:01:36]} 37. Ne6+ {[%emt 0:02:22]} Kf7 {[%emt 0:00:
00]} 38. Bb3 {[%emt 0:00:10]} Ke7 {[%emt 0:00:22]} 39. Nf4 {[%emt 0:00:24]} Ne4
{[%emt 0:01:12]} 40. Rh3 {[%emt 0:01:36]} Kf6 {[%emt 0:00:51]} 41. Rh7 {
[%emt 0:32:36]} Rd8 {[%emt 0:04:29]} 42. Nd5+ {[%emt 0:00:00]} Kg5 {[%emt 0:00:
00]} 43. Rxa7 {[%emt 0:00:00]} Bc6 {[%emt 0:00:39]} 44. Ne7 {[%emt 0:00:00]}
Bd7 {[%emt 0:01:47]} 45. Bd5 {[%emt 0:00:00]} Nf6 {[%emt 0:03:25]} 46. f4+ {
[%emt 0:00:00]} Kh6 {[%emt 0:01:58]} 47. Ra8 {[%emt 0:00:00]} Bg4+ {[%emt 0:00:
00]} 48. Ke1 {[%emt 0:00:00]} Rxd5 {[%emt 0:00:23]} 49. Nxd5 {[%emt 0:00:00]}
Nxd5 {[%emt 0:00:06]} 50. Kd2 {[%emt 0:00:00]} Bf3 {[%emt 0:01:12]} 51. Rd8 {
[%emt 0:00:00]} Be4 {[%emt 0:04:36]} 52. Re8 {[%emt 0:00:00]} Nf6 {[%emt 0:00:
00]} 53. Re6 {[%emt 0:00:00]} Kg7 {[%emt 0:00:34]} 54. a4 {[%emt 0:00:00]} Bf5
{[%emt 0:02:47]} 55. Ra6 {[%emt 0:00:00]} Ne4+ {[%emt 0:00:12]} 56. Kc1 {
[%emt 0:00:00]} bxa4 {[%emt 0:01:54]} 57. Rxa4 {[%emt 0:00:00]} Kf7 {[%emt 0:
00:00]} 58. Rd4 {[%emt 0:00:00]} Nc5 {[%emt 0:01:38]} 59. Rd8 {[%emt 0:00:00]}
Ke7 {[%emt 0:00:24]} 60. Rb8 {[%emt 0:00:00]} Kd6 {[%emt 0:01:24]} 61. Kd2 {
[%emt 0:00:58]} Nd7 {[%emt 0:03:02]} 62. Re8 {[%emt 0:00:58]} Kd5 {[%emt 0:00:
00]} 63. Kc3 {[%emt 0:00:28]} Nc5 {[%emt 0:01:23]} 64. b4 {[%emt 0:01:52]} Ne4+
{[%emt 0:00:26]} 65. Kb3 {[%emt 0:00:34]} Nd6 {[%emt 0:00:17]} 66. Re5+ {
[%emt 0:00:43]} Kc6 {[%emt 0:00:07]} 67. Ka4 {[%emt 0:03:20]} Bc2+ {[%emt 0:00:
00]} 68. Ka5 {[%emt 0:01:19]} Nc4+ {[%emt 0:00:02]} 69. Ka6 {[%emt 0:00:33]}
Nxe5 {[%emt 0:00:15]} 70. b5+ {[%emt 0:03:10]} Kd7 {[%emt 0:00:05]} 71. fxe5 {
[%emt 0:00:24]} Ke6 {[%emt 0:00:09]} 72. b6 {[%emt 0:00:54]} Be4 {[%emt 0:00:
00]} 73. Kb5 {[%emt 0:01:01]} g5 {[%emt 0:00:14]} 74. Kc4 {[%emt 0:00:43]} Kxe5
{[%emt 0:00:11]} 75. b7 {[%emt 0:00:22]} Bxb7 {[%emt 0:00:05]} 76. Kd3 {
[%emt 0:00:13]} Bf3 {[%emt 0:00:44]} 77. Kd2 {[%emt 0:01:18]} g4 {[%emt 0:00:
00]} 78. Ke1 {[%emt 0:00:28]} g3 {[%emt 0:00:08]} 79. Kf1 {[%emt 0:00:16]} Ke4
{[%emt 0:00:07]} 80. Kg1 {[%emt 0:00:22]} Kxe3 {[%emt 0:00:08]} 81. Kf1 {
[%emt 0:00:13]} Kf4 {[%emt 0:00:14]} 0-1

[Event "44th Chess Olympiad Open 2022"]
[Site "Chennai"]
[Date "2022.08.01"]
[Round "4.83"]
[White "Berardi, Giancarlo"]
[Black "Bansal, Nayan"]
[Result "1-0"]
[WhiteElo "1757"]
[BlackElo "1444"]
[Annotator "NA RC"]
[PlyCount "59"]
[EventDate "2022.??.??"]
[TimeControl "60"]

1. c4 {[%emt 0:00:09]} c5 {[%emt 0:00:26]} 2. Nc3 {[%emt 0:00:28]} Nc6 {
[%emt 0:01:06]} 3. g3 {[%emt 0:00:29]} e6 {[%emt 0:03:08]} 4. Bg2 {[%emt 0:00:
00]} Nf6 {[%emt 0:01:21]} 5. Nf3 {[%emt 0:01:17]} d5 {[%emt 0:02:47]} 6. cxd5 {
[%emt 0:01:18]} exd5 {[%emt 0:01:01]} 7. d4 {[%emt 0:03:30]} b6 {[%emt 0:13:53]
} 8. O-O {[%emt 0:02:54]} Be7 {[%emt 0:07:12]} 9. Re1 {[%emt 0:07:09]} O-O {
[%emt 0:04:13]} 10. b3 {[%emt 0:13:46]} Bb7 {[%emt 0:06:34]} 11. Bb2 {[%emt 0:
00:00]} h5 {[%emt 0:09:32]} 12. Rc1 {[%emt 0:04:53]} h4 {[%emt 0:14:07]} 13.
dxc5 {[%emt 0:02:27]} Bxc5 {[%emt 0:01:57]} 14. Nxh4 {[%emt 0:00:59]} d4 {
[%emt 0:09:21]} 15. Na4 {[%emt 0:02:26]} Bb4 {[%emt 0:03:54]} 16. Bxc6 {
[%emt 0:04:16]} Bxe1 {[%emt 0:01:04]} 17. Bxb7 {[%emt 0:01:40]} Bxf2+ {[%emt 0:
00:00]} 18. Kxf2 {[%emt 0:02:10]} Rb8 {[%emt 0:04:23]} 19. Bf3 {[%emt 0:00:50]}
Qd7 {[%emt 0:03:10]} 20. Bxd4 {[%emt 0:05:20]} Rbd8 {[%emt 0:02:35]} 21. e3 {
[%emt 0:00:28]} Qh3 {[%emt 0:01:33]} 22. Qg1 {[%emt 0:02:46]} Ng4+ {[%emt 0:00:
00]} 23. Bxg4 {[%emt 0:00:58]} Qxg4 {[%emt 0:00:12]} 24. Qg2 {[%emt 0:02:03]}
Rxd4 {[%emt 0:00:46]} 25. exd4 {[%emt 0:01:32]} Qxd4+ {[%emt 0:00:12]} 26. Kf3
{[%emt 0:05:13]} Qf6+ {[%emt 0:01:07]} 27. Kg4 {[%emt 0:02:17]} Qe6+ {[%emt 0:
00:00]} 28. Nf5 {[%emt 0:00:59]} Qg6+ {[%emt 0:01:39]} 29. Kf4 {[%emt 0:00:57]}
Kh8 {[%emt 0:02:17]} 30. Qh3+ {[%emt 0:00:43]} 1-0

[Event "44th Chess Olympiad Open 2022"]
[Site "Chennai"]
[Date "2022.08.01"]
[Round "4.83"]
[White "Herrera, Adrian"]
[Black "Smith, Michael A"]
[Result "1-0"]
[WhiteElo "1563"]
[BlackElo "1840"]
[Annotator "NA RC"]
[PlyCount "51"]
[EventDate "2022.??.??"]
[TimeControl "60"]

1. e4 {[%emt 0:00:04]} d6 {[%emt 0:01:09]} 2. d4 {[%emt 0:01:05]} e5 {[%emt 0:
00:00]} 3. dxe5 {[%emt 0:01:51]} dxe5 {[%emt 0:00:03]} 4. Qxd8+ {[%emt 0:02:13]
} Kxd8 {[%emt 0:00:06]} 5. Bc4 {[%emt 0:02:16]} Be6 {[%emt 0:06:15]} 6. Bxe6 {
[%emt 0:00:23]} fxe6 {[%emt 0:00:04]} 7. Be3 {[%emt 0:02:44]} Nd7 {[%emt 0:00:
00]} 8. Nd2 {[%emt 0:04:13]} Bb4 {[%emt 0:02:57]} 9. Rd1 {[%emt 0:06:20]} Ngf6
{[%emt 0:02:44]} 10. f3 {[%emt 0:04:08]} Ke7 {[%emt 0:02:59]} 11. Ke2 {[%emt 0:
00:00]} Rad8 {[%emt 0:02:32]} 12. Nh3 {[%emt 0:01:40]} h6 {[%emt 0:01:45]} 13.
Nf2 {[%emt 0:03:01]} g5 {[%emt 0:02:37]} 14. c3 {[%emt 0:03:06]} Bc5 {[%emt 0:
00:00]} 15. Nd3 {[%emt 0:04:12]} Bxe3 {[%emt 0:04:24]} 16. Kxe3 {[%emt 0:00:07]
} Nh5 {[%emt 0:01:32]} 17. g3 {[%emt 0:03:28]} Nhf6 {[%emt 0:03:06]} 18. Nc4 {
[%emt 0:02:02]} Rhg8 {[%emt 0:03:19]} 19. h3 {[%emt 0:03:57]} h5 {[%emt 0:00:
00]} 20. Ncxe5 {[%emt 0:00:35]} g4 {[%emt 0:02:48]} 21. hxg4 {[%emt 0:03:07]}
hxg4 {[%emt 0:00:17]} 22. f4 {[%emt 0:02:30]} Nxe5 {[%emt 0:04:02]} 23. Nxe5 {
[%emt 0:00:09]} Nd7 {[%emt 0:03:24]} 24. Rh7+ {[%emt 0:00:19]} Ke8 {[%emt 0:00:
00]} 25. Nxd7 {[%emt 0:00:33]} e5 {[%emt 0:02:02]} 26. Nf6+ {[%emt 0:00:11]}
1-0

[Event "44th Chess Olympiad Open 2022"]
[Site "Chennai"]
[Date "2022.08.01"]
[Round "4.83"]
[White "Hair, Justin M"]
[Black "Righi, Ezio"]
[Result "0-1"]
[WhiteElo "1505"]
[BlackElo "1912"]
[Annotator "NA RC"]
[PlyCount "78"]
[EventDate "2022.??.??"]
[TimeControl "60"]

1. e4 {[%emt 0:00:05]} c5 {[%emt 0:00:07]} 2. Nf3 {[%emt 0:00:12]} e6 {[%emt 0:
00:00]} 3. d4 {[%emt 0:00:37]} cxd4 {[%emt 0:00:12]} 4. Nxd4 {[%emt 0:00:11]}
a6 {[%emt 0:00:19]} 5. Nc3 {[%emt 0:00:30]} Qc7 {[%emt 0:00:26]} 6. Bd3 {
[%emt 0:01:30]} Nf6 {[%emt 0:01:13]} 7. Be3 {[%emt 0:01:19]} Nc6 {[%emt 0:00:
00]} 8. h3 {[%emt 0:01:50]} d6 {[%emt 0:02:47]} 9. Qd2 {[%emt 0:02:13]} Be7 {
[%emt 0:01:12]} 10. a3 {[%emt 0:05:08]} b5 {[%emt 0:00:57]} 11. f4 {[%emt 0:00:
00]} Bb7 {[%emt 0:02:15]} 12. O-O-O {[%emt 0:04:06]} b4 {[%emt 0:02:18]} 13.
Nb1 {[%emt 0:05:27]} Nxd4 {[%emt 0:04:49]} 14. Bxd4 {[%emt 0:03:53]} Nxe4 {
[%emt 0:06:36]} 15. Qxb4 {[%emt 0:05:55]} d5 {[%emt 0:01:25]} 16. Qe1 {[%emt 0:
00:00]} Qxf4+ {[%emt 0:01:57]} 17. Be3 {[%emt 0:06:12]} Qc7 {[%emt 0:00:49]}
18. Rf1 {[%emt 0:02:46]} O-O {[%emt 0:03:59]} 19. Nd2 {[%emt 0:02:24]} Rac8 {
[%emt 0:03:01]} 20. Qe2 {[%emt 0:04:24]} Ng3 {[%emt 0:05:19]} 21. Qg4 {[%emt 0:
00:00]} Nxf1 {[%emt 0:00:15]} 22. Bh6 {[%emt 0:00:28]} Bf6 {[%emt 0:01:25]} 23.
Rxf1 {[%emt 0:06:23]} Qe5 {[%emt 0:01:22]} 24. c3 {[%emt 0:02:17]} Rxc3+ {
[%emt 0:10:37]} 25. bxc3 {[%emt 0:00:57]} Qxc3+ {[%emt 0:00:21]} 26. Kd1 {
[%emt 0:03:04]} Kh8 {[%emt 0:00:41]} 27. Rxf6 {[%emt 0:18:03]} Qxf6 {[%emt 0:
00:00]} 28. Bg5 {[%emt 0:00:14]} Qa1+ {[%emt 0:01:33]} 29. Ke2 {[%emt 0:00:16]}
f5 {[%emt 0:01:57]} 30. Qh5 {[%emt 0:00:36]} Qxa3 {[%emt 0:02:51]} 31. g4 {
[%emt 0:00:23]} Bc6 {[%emt 0:01:26]} 32. Nb1 {[%emt 0:03:00]} Qb2+ {[%emt 0:00:
00]} 33. Kd1 {[%emt 0:00:20]} Ba4+ {[%emt 0:01:56]} 34. Ke1 {[%emt 0:01:00]}
Bb5 {[%emt 0:00:14]} 35. Bxb5 {[%emt 0:05:40]} Qxb1+ {[%emt 0:00:10]} 36. Kd2 {
[%emt 0:00:16]} Qxb5 {[%emt 0:00:21]} 37. Be7 {[%emt 0:00:08]} Rc8 {[%emt 0:00:
00]} 38. Qf7 {[%emt 0:01:41]} Qe8 {[%emt 0:01:03]} 39. Qxe6 {[%emt 0:01:32]}
Rc7 {[%emt 0:00:08]} 0-1